{"text_format":"1","workbook":"xlsx","n_sheets":4,"sheets":["Suunnittelu","Riskienhallintaprosessi","Riskiluokkien kuvaus ja määritt","MetaData"],"not_rendered":{"charts":0,"images":0,"macros":1,"external_links":0,"defined_names":18,"comments":0,"pivot_tables":0},"unopened":[],"bounds":{"document_bytes":16777216,"sheet_cells":100000,"rows_first":2000,"rows_last":500,"rows_between":2000,"halvings":0,"cell_chars":16384,"cell_head_chars":4096},"cells_cut":0,"cells_raw":0,"read":"whole","date_system":"1900"}

{"sheet":"Suunnittelu","index":0,"n_rows":20,"n_cols":4,"rows_kept":20,"cut":false,"hidden":false,"merged":[[1,1,1,3],[3,2,3,3],[4,2,4,3],[5,2,5,3],[2,2,2,3]]}
[]
[null,"Riskien arviointi ja hallinta työpaikalla - SUUNNITTELULOMAKE"]
[null,"Yrityksen nimi: ","[Lisää yritys]"]
[null,"Kohde/osasto:","[Lisää kohde/osasto]"]
[null,"Suunnitelman tekijät: ","[Lisää tekijät]"]
[null,"Päiväys:","[Lisä päiväys]"]
[null,"Suunnittelun osien otsikko ja kuvaus","Täytettävät tiedot","Vastuutahot/-henkilöt"]
[null,"Lähtötiedot ja niiden keruu \nAiemmin tehdyt selvitykset, mittaukset, kartoitukset, läheltä piti -tapaukset, sattuneet tapaturmat, vaaratilanneilmoitukset, turvallisuushavainnot, työpaikkakyselyt tmv, yleinen katsaus toimialalla tyypillisesti sattuneista riskeistä"]
[null,"Tavoitteet\nTTT-toiminnan tason jatkuva parantaminen, lakisääteisten ja muiden vaatimusten täyttäminen, TTT-tavoitteiden saavuttaminen, Kuinka TTT-tavoitteiden saavuttamiseen käytettävät toimenpiteet yhdistetään organisaation liiketoimintaprosesseihin?"]
[null,"Johdon sitoutuminen\nMiten varmistetaan ylimmän johdon sitoutuminen riskien arviointiin?"]
[null,"Arvioinnin kohteet\nOsastokohtainen jako, tai jako työpisteisiin, työryhmiin, työtehtäviin tai ammattinimikkeisiin"]
[null,"Arviointiryhmä\nKokoonkutsuja, arviointiryhmän jäsenet"]
[null,"Koulutus\nKoulutustarve, kouluttajat, aikataulu"]
[null,"Henkilöstön osallistuminen \nMiten henkilöstön osallistuminen riskien arviointiin varmistetaan? "]
[null,"Käytettävät työkalut ja menetelmät \nEri kohteissa käytettävät menetelmät"]
[null,"Aikataulu\nMillä aikataululla tarvittavat toimet tulee saada valmiiksi?"]
[null,"Tiedottaminen \nMiten riskien arvioinnista tiedotetaan työpaikalla arvioinnin alussa, arvioinnin aikana ja arvioinnin valmistuttua?"]
[null,"Raportointi ja viestintä \nMiten arvioinnin tulokset dokumentoidaan ja raportoidaan? Kelle tulokset raportoidaan? Millä aikataululla raportointi tehdään?"]
[null,"Toimenpiteiden toteuttaminen \nMiten varmistetaan toimenpiteiden vieminen käytäntöön?"]
[null,"Seurantatavat\nMiten riskien arvioinnin tuloksia seurataan? Kuinka tuloksia arvioidaan ja millaisilla indikaattoreilla niitä seurataan? "]

{"sheet":"Riskienhallintaprosessi","index":1,"n_rows":113,"n_cols":38,"rows_kept":113,"cut":false,"hidden":false,"merged":[[2,31,5,37],[1,1,1,3],[2,2,2,3],[3,2,3,3],[5,2,5,3],[4,2,4,3],[2,9,5,11],[2,12,5,18],[2,19,5,30],[2,4,5,8]]}
[]
[null,"RISKIEN ARVIOINTI JA HALLINTA TYÖPAIKALLA – ARVIOINTILOMAKE"]
[null,"Yrityksen nimi:",{"$f":"Suunnittelu!C3","v":"[Lisää yritys]"},null,"HAITTA- JA VAARATEKIJÖIDEN TUNNISTAMINEN",null,null,null,null,"SUURUUDEN MÄÄRITTÄMINEN",null,null,"RISKIN MERKITTÄVYYDESTÄ PÄÄTTÄMINEN",null,null,null,null,null,null,"TOIMENPITEIDEN SUUNNITTELU JA VALINTA",null,null,null,null,null,null,null,null,null,null,null,"TOIMENPITEIDEN TOTEUTUS JA SEURANTA"]
[null,"Arvioinnin kohteen kuvaus:",{"$f":"Suunnittelu!C4","v":"[Lisää kohde/osasto]"}]
[null,"Arvioinnin tekijät:",{"$f":"Suunnittelu!C5","v":"[Lisää tekijät]"}]
[null,"Päiväys:",{"$f":"Suunnittelu!C6","v":"[Lisä päiväys]"}]
[null,"Tarkistuslista","Alaluokka","Vaara ","Esiintyykö vaaraa työpaikalla?","Kuvaa, missä tilanteessa vaara esiintyy:","Mitä terveys-/turvallisuusvaikutuksia vaarasta aiheutuu yksilölle?","Käytössä olevat toimenpiteet:","Ovatko nykyiset toimenpiteet riittäviä?","Ovatko seuraukset vakavia?","Ovatko seuraukset todennäköisiä?","Riski","Riski vaikuttaa suureen joukkoon","Seuraukset ovat organisaatiolle pitkäaikaisia ","Riski vaikuttaa työn sujuvuuteen","Riski vaikuttaa työn kannattavuuteen","Riski  vaikuttaa tuottavuuteen","Sidosryhmillä on vaateita riskiin liittyen","Riski on merkittävä koko organisaatiolle","Toimenpidetarve","Korvaa","Hallitse teknisesti","Organisoi","Hallinnoi","Kouluta","Suojaa","Joku muu","Kuvaa valittu toimenpide / valitut toimenpiteet","Aikataulu","Vastuuhenkilö","Toimenpiteet estävät riskin syntymisen täysin","Toimenpiteet toteutettu","Kuittauksen päivämäärä","Onko seuraus vakava toimenpiteiden jälkeen?","Onko seuraus todennäköinen toimenpiteiden jälkeen?","Onko olosuhteissa tapahtunut muutoksia toimenpiteen toteuttamisen jälkeen?","Jäännösriski","Riskinarvioinnin tila"]
[null,"Tapaturman vaarat (T)","T - Työympäristö","T 1. Liukastuminen","Kyllä",null,null,null,"Ei","Ei","Kyllä",{"$f":"IF(OR(E8=\"\",E8=\"Ei\",E8=\"Ei koske arvioitavaa kohdetta\"),\"\",IF(I8=\"Kyllä\",\"Siedettävä\",IF(OR(J8=\"\",K8=\"\"),\"\",IF(AND(J8=\"Ei\",K8=\"Ei\"),\"Seurattava\",IF(AND(J8=\"Kyllä\",K8=\"Kyllä\"),\"Kriittinen\",\"Arvioitava\")))))","v":"Arvioitava"},"Kyllä","Kyllä",null,null,null,null,null,{"$f":"IF(OR(E8=\"\",AND(E8=\"Kyllä\",L8=\"\")),\"[Arviointi kesken]\",IF(L8<>\"\",IF(L8=\"Seurattava\",\"Myös helpot toimenpiteet mahdollisia\",IF(L8=\"Kriittinen\",\"Välitön (heti)\",IF(L8=\"Siedettävä\",\"Arvioitava olosuhteiden muuttuessa\",IF(AND(M8=\"Kyllä\",N8=\"Kyllä\"),\"Pikainen\",IF(AND(M8=\"Ei\",N8=\"Ei\"),\"Myös helpot toimenpiteet mahdollisia\",IF(S8=\"Kyllä\",\"Kohtuullisen ajan sisällä\",IF(S8=\"Ei\",\"Myös helpot toimenpiteet mahdollisia\",\"[Arviointi kesken]\"))))))),\"\"))","v":"Pikainen"},null,null,null,null,null,null,null,null,null,null,null,null,null,null,null,null,{"$f":"IF(T8=\"[Arviointi kesken]\",\"[Arviointi kesken]\",IF(AND(AND(AND(AND(AND(AG8<>\"\",AF8=\"OK\"),AE8=\"Ei\"),AH8=\"Ei\"),AI8=\"Ei\"),AJ8=\"Kyllä\"),\"Arvioitava uudelleen\",IF(AND(AND(AND(AND(AND(AG8<>\"\",AF8=\"OK\"),AE8=\"Ei\"),AH8=\"Ei\"),AI8=\"Ei\"),AJ8=\"Ei\"),\"Jäännösriski seurattava\",IF(AND(AND(AND(AND(AH8=\"Kyllä\",AI8=\"Kyllä\"),AE8=\"Ei\"),AF8=\"OK\"),AG8<>\"\"),\"Jäännösriski kriittinen\",IF(AND(AND(AND(AE8=\"Ei\",OR(AH8=\"Kyllä\",AI8=\"Kyllä\"),AH8<>\"\",AI8<>\"\"),AJ8=\"Kyllä\")),\"Arvioitava uudelleen\",IF(AND(AND(AND(AE8=\"Ei\",OR(AH8=\"Kyllä\",AI8=\"Kyllä\"),AH8<>\"\",AI8<>\"\"),AJ8=\"Ei\")),\"Edelleen pienennettävä\",IF(OR(AND(AND(AND(AE8=\"Kyllä\",AF8=\"OK\",AG8<>\"\",AJ8=\"Ei\"))),AND(AND(AND(AE8=\"Kyllä\",AF8=\"OK\",AG8<>\"\",AJ8=\"Ei\")))),\"Jäännösriski siedettävä\",IF(AND(AND(AND(AE8=\"Kyllä\",AF8=\"OK\",AG8<>\"\",AJ8=\"Kyllä\"))),\"Arvioitava uudelleen\",IF(AND(E8=\"Kyllä, mutta on hallinnassa\",AJ8=\"Ei\"),\"Jäännösriski siedettävä\",IF(AND(E8=\"Ei koske arvioitavaa kohdetta\",AJ8=\"Ei\"),\"Ei riskiä kohteessa\",IF(AND(E8=\"Ei koske arvioitavaa kohdetta\",AJ8=\"Kyllä\"),\"Arvioitava uudelleen\",IF(AND(AND(E8=\"Kyllä\",L8=\"Siedettävä\",AJ8=\"Ei\")),\"Jäännösriski siedettävä\",IF(AND(AND(OR(E8=\"Kyllä\",E8=\"Kyllä, mutta on hallinnassa\"),L8=\"Siedettävä\",AJ8=\"Kyllä\")),\"Arvioitava uudelleen\",\"[Arviointi kesken]\")))))))))))))","v":"[Arviointi kesken]"},{"$f":"IF(T8=\"[Arviointi kesken]\",\"[Arviointi kesken]\",IF(AND(AND(AND(AND(AND(AG8<>\"\",AF8=\"OK\"),AE8=\"Ei\"),AH8=\"Ei\"),AI8=\"Ei\"),AJ8=\"Kyllä\"),\"Lisätoimenpiteet suositeltavia, kunnes riski on siedettävä. Arvioi riski uudelleen, koska olosuhteet ovat muuttuneet. Palaa haitta- ja vaaratekijöiden tunnistamiseen.\",IF(AND(AND(AND(AND(AND(AG8<>\"\",AF8=\"OK\"),AE8=\"Ei\"),AH8=\"Ei\"),AI8=\"Ei\"),AJ8=\"Ei\"),\"Lisätoimenpiteet suositeltavia, kunnes riski on siedettävä. Palaa toimenpiteiden suunnitteluun ja valintaan.\",IF(AND(AND(AND(AND(AH8=\"Kyllä\",AI8=\"Kyllä\"),AE8=\"Ei\"),AF8=\"OK\"),AG8<>\"\"),\"Lisätoimenpiteitä toteutettava välittömästi. Palaa toimenpiteiden suunnitteluun ja valintaan.\",IF(AND(AND(AND(AE8=\"Ei\",OR(AH8=\"Kyllä\",AI8=\"Kyllä\"),AH8<>\"\",AI8<>\"\"),AJ8=\"Kyllä\")),\"Lisätoimenpiteitä edelleen suunniteltava, kunnes riski on siedettävä. Arvioi riski uudelleen, koska olosuhteet ovat muuttuneet. Palaa haitta- ja vaaratekijöiden tunnistamiseen.\",IF(AND(AND(AND(AE8=\"Ei\",OR(AH8=\"Kyllä\",AI8=\"Kyllä\"),AH8<>\"\",AI8<>\"\"),AJ8=\"Ei\")),\"Lisätoimenpiteitä edelleen suunniteltava, kunnes riski on siedettävä. Palaa toimenpiteiden suunnitteluun ja valintaan.\",IF(OR(AND(AND(AND(AE8=\"Kyllä\",AF8=\"OK\",AG8<>\"\",AJ8=\"Ei\"))),AND(AND(AND(AE8=\"Kyllä\",AF8=\"OK\",AG8<>\"\",AJ8=\"Ei\")))),\"Kunnossa, päivitä olosuhteiden muuttuessa.\",IF(AND(AND(AND(AE8=\"Kyllä\",AF8=\"OK\",AG8<>\"\",AJ8=\"Kyllä\"))),\"Päivitettävä, koska olosuhteet ovat muuttuneet. Palaa haitta- ja vaaratekijöiden tunnistamiseen.\",IF(AND(E8=\"Kyllä, mutta on hallinnassa\",AJ8=\"Ei\"),\"Kunnossa, päivitä olosuhteiden muuttuessa.\",IF(AND(E8=\"Ei koske arvioitavaa kohdetta\",AJ8=\"Ei\"),\"Kunnossa, päivitä olosuhteiden muuttuessa.\",IF(AND(E8=\"Ei koske arvioitavaa kohdetta\",AJ8=\"Kyllä\"),\"Päivitettävä, palaa haitta- ja vaaratekijöiden tunnistamiseen.\",IF(AND(AND(E8=\"Kyllä\",L8=\"Siedettävä\",AJ8=\"Ei\")),\"Kunnossa, päivitä olosuhteiden muuttuessa.\",IF(AND(AND(OR(E8=\"Kyllä\",E8=\"Kyllä, mutta on hallinnassa\"),L8=\"Siedettävä\",AJ8=\"Kyllä\")),\"Päivitettävä, palaa haitta- ja vaaratekijöiden tunnistamiseen.\",\"[Arviointi kesken]\")))))))))))))","v":"[Arviointi kesken]"}]
[null,"Tapaturman vaarat (T)","T - Työympäristö","T 2. Kompastuminen",null,null,null,null,null,null,null,"",null,null,null,null,null,null,null,"[Arviointi kesken]",null,null,null,null,null,null,null,null,null,null,null,null,null,null,null,null,{"$f":"IF(T9=\"[Arviointi kesken]\",\"[Arviointi kesken]\",IF(AND(AND(AND(AND(AND(AG9<>\"\",AF9=\"OK\"),AE9=\"Ei\"),AH9=\"Ei\"),AI9=\"Ei\"),AJ9=\"Kyllä\"),\"Arvioitava uudelleen\",IF(AND(AND(AND(AND(AND(AG9<>\"\",AF9=\"OK\"),AE9=\"Ei\"),AH9=\"Ei\"),AI9=\"Ei\"),AJ9=\"Ei\"),\"Jäännösriski seurattava\",IF(AND(AND(AND(AND(AH9=\"Kyllä\",AI9=\"Kyllä\"),AE9=\"Ei\"),AF9=\"OK\"),AG9<>\"\"),\"Jäännösriski kriittinen\",IF(AND(AND(AND(AE9=\"Ei\",OR(AH9=\"Kyllä\",AI9=\"Kyllä\"),AH9<>\"\",AI9<>\"\"),AJ9=\"Kyllä\")),\"Arvioitava uudelleen\",IF(AND(AND(AND(AE9=\"Ei\",OR(AH9=\"Kyllä\",AI9=\"Kyllä\"),AH9<>\"\",AI9<>\"\"),AJ9=\"Ei\")),\"Edelleen pienennettävä\",IF(OR(AND(AND(AND(AE9=\"Kyllä\",AF9=\"OK\",AG9<>\"\",AJ9=\"Ei\"))),AND(AND(AND(AE9=\"Kyllä\",AF9=\"OK\",AG9<>\"\",AJ9=\"Ei\")))),\"Jäännösriski siedettävä\",IF(AND(AND(AND(AE9=\"Kyllä\",AF9=\"OK\",AG9<>\"\",AJ9=\"Kyllä\"))),\"Arvioitava uudelleen\",IF(AND(E9=\"Kyllä, mutta on hallinnassa\",AJ9=\"Ei\"),\"Jäännösriski siedettävä\",IF(AND(E9=\"Ei koske arvioitavaa kohdetta\",AJ9=\"Ei\"),\"Ei riskiä kohteessa\",IF(AND(E9=\"Ei koske arvioitavaa kohdetta\",AJ9=\"Kyllä\"),\"Arvioitava uudelleen\",IF(AND(AND(E9=\"Kyllä\",L9=\"Siedettävä\",AJ9=\"Ei\")),\"Jäännösriski siedettävä\",IF(AND(AND(OR(E9=\"Kyllä\",E9=\"Kyllä, mutta on hallinnassa\"),L9=\"Siedettävä\",AJ9=\"Kyllä\")),\"Arvioitava uudelleen\",\"[Arviointi kesken]\")))))))))))))","v":"[Arviointi kesken]"},{"$f":"IF(T9=\"[Arviointi kesken]\",\"[Arviointi kesken]\",IF(AND(AND(AND(AND(AND(AG9<>\"\",AF9=\"OK\"),AE9=\"Ei\"),AH9=\"Ei\"),AI9=\"Ei\"),AJ9=\"Kyllä\"),\"Lisätoimenpiteet suositeltavia, kunnes riski on siedettävä. Arvioi riski uudelleen, koska olosuhteet ovat muuttuneet. Palaa haitta- ja vaaratekijöiden tunnistamiseen.\",IF(AND(AND(AND(AND(AND(AG9<>\"\",AF9=\"OK\"),AE9=\"Ei\"),AH9=\"Ei\"),AI9=\"Ei\"),AJ9=\"Ei\"),\"Lisätoimenpiteet suositeltavia, kunnes riski on siedettävä. Palaa toimenpiteiden suunnitteluun ja valintaan.\",IF(AND(AND(AND(AND(AH9=\"Kyllä\",AI9=\"Kyllä\"),AE9=\"Ei\"),AF9=\"OK\"),AG9<>\"\"),\"Lisätoimenpiteitä toteutettava välittömästi. Palaa toimenpiteiden suunnitteluun ja valintaan.\",IF(AND(AND(AND(AE9=\"Ei\",OR(AH9=\"Kyllä\",AI9=\"Kyllä\"),AH9<>\"\",AI9<>\"\"),AJ9=\"Kyllä\")),\"Lisätoimenpiteitä edelleen suunniteltava, kunnes riski on siedettävä. Arvioi riski uudelleen, koska olosuhteet ovat muuttuneet. Palaa haitta- ja vaaratekijöiden tunnistamiseen.\",IF(AND(AND(AND(AE9=\"Ei\",OR(AH9=\"Kyllä\",AI9=\"Kyllä\"),AH9<>\"\",AI9<>\"\"),AJ9=\"Ei\")),\"Lisätoimenpiteitä edelleen suunniteltava, kunnes riski on siedettävä. Palaa toimenpiteiden suunnitteluun ja valintaan.\",IF(OR(AND(AND(AND(AE9=\"Kyllä\",AF9=\"OK\",AG9<>\"\",AJ9=\"Ei\"))),AND(AND(AND(AE9=\"Kyllä\",AF9=\"OK\",AG9<>\"\",AJ9=\"Ei\")))),\"Kunnossa, päivitä olosuhteiden muuttuessa.\",IF(AND(AND(AND(AE9=\"Kyllä\",AF9=\"OK\",AG9<>\"\",AJ9=\"Kyllä\"))),\"Päivitettävä, koska olosuhteet ovat muuttuneet. Palaa haitta- ja vaaratekijöiden tunnistamiseen.\",IF(AND(E9=\"Kyllä, mutta on hallinnassa\",AJ9=\"Ei\"),\"Kunnossa, päivitä olosuhteiden muuttuessa.\",IF(AND(E9=\"Ei koske arvioitavaa kohdetta\",AJ9=\"Ei\"),\"Kunnossa, päivitä olosuhteiden muuttuessa.\",IF(AND(E9=\"Ei koske arvioitavaa kohdetta\",AJ9=\"Kyllä\"),\"Päivitettävä, palaa haitta- ja vaaratekijöiden tunnistamiseen.\",IF(AND(AND(E9=\"Kyllä\",L9=\"Siedettävä\",AJ9=\"Ei\")),\"Kunnossa, päivitä olosuhteiden muuttuessa.\",IF(AND(AND(OR(E9=\"Kyllä\",E9=\"Kyllä, mutta on hallinnassa\"),L9=\"Siedettävä\",AJ9=\"Kyllä\")),\"Päivitettävä, palaa haitta- ja vaaratekijöiden tunnistamiseen.\",\"[Arviointi kesken]\")))))))))))))","v":"[Arviointi kesken]"}]
[null,"Tapaturman vaarat (T)","T - Työympäristö","T 3. Henkilön putoaminen",null,null,null,null,null,null,null,"",null,null,null,null,null,null,null,"[Arviointi kesken]",null,null,null,null,null,null,null,null,null,null,null,null,null,null,null,null,{"$f":"IF(T10=\"[Arviointi kesken]\",\"[Arviointi kesken]\",IF(AND(AND(AND(AND(AND(AG10<>\"\",AF10=\"OK\"),AE10=\"Ei\"),AH10=\"Ei\"),AI10=\"Ei\"),AJ10=\"Kyllä\"),\"Arvioitava uudelleen\",IF(AND(AND(AND(AND(AND(AG10<>\"\",AF10=\"OK\"),AE10=\"Ei\"),AH10=\"Ei\"),AI10=\"Ei\"),AJ10=\"Ei\"),\"Jäännösriski seurattava\",IF(AND(AND(AND(AND(AH10=\"Kyllä\",AI10=\"Kyllä\"),AE10=\"Ei\"),AF10=\"OK\"),AG10<>\"\"),\"Jäännösriski kriittinen\",IF(AND(AND(AND(AE10=\"Ei\",OR(AH10=\"Kyllä\",AI10=\"Kyllä\"),AH10<>\"\",AI10<>\"\"),AJ10=\"Kyllä\")),\"Arvioitava uudelleen\",IF(AND(AND(AND(AE10=\"Ei\",OR(AH10=\"Kyllä\",AI10=\"Kyllä\"),AH10<>\"\",AI10<>\"\"),AJ10=\"Ei\")),\"Edelleen pienennettävä\",IF(OR(AND(AND(AND(AE10=\"Kyllä\",AF10=\"OK\",AG10<>\"\",AJ10=\"Ei\"))),AND(AND(AND(AE10=\"Kyllä\",AF10=\"OK\",AG10<>\"\",AJ10=\"Ei\")))),\"Jäännösriski siedettävä\",IF(AND(AND(AND(AE10=\"Kyllä\",AF10=\"OK\",AG10<>\"\",AJ10=\"Kyllä\"))),\"Arvioitava uudelleen\",IF(AND(E10=\"Kyllä, mutta on hallinnassa\",AJ10=\"Ei\"),\"Jäännösriski siedettävä\",IF(AND(E10=\"Ei koske arvioitavaa kohdetta\",AJ10=\"Ei\"),\"Ei riskiä kohteessa\",IF(AND(E10=\"Ei koske arvioitavaa kohdetta\",AJ10=\"Kyllä\"),\"Arvioitava uudelleen\",IF(AND(AND(E10=\"Kyllä\",L10=\"Siedettävä\",AJ10=\"Ei\")),\"Jäännösriski siedettävä\",IF(AND(AND(OR(E10=\"Kyllä\",E10=\"Kyllä, mutta on hallinnassa\"),L10=\"Siedettävä\",AJ10=\"Kyllä\")),\"Arvioitava uudelleen\",\"[Arviointi kesken]\")))))))))))))","v":"[Arviointi kesken]"},"[Arviointi kesken]"]
[null,"Tapaturman vaarat (T)","T - Työympäristö","T 4. Lukittuun tilaan loukkuun jääminen",null,null,null,null,null,null,null,"",null,null,null,null,null,null,null,"[Arviointi kesken]",null,null,null,null,null,null,null,null,null,null,null,null,null,null,null,null,"[Arviointi kesken]","[Arviointi kesken]"]
[null,"Tapaturman vaarat (T)","T - Työympäristö","T 5. Sähköisku tai staattisen sähkön purkaus",null,null,null,null,null,null,null,"",null,null,null,null,null,null,null,"[Arviointi kesken]",null,null,null,null,null,null,null,null,null,null,null,null,null,null,null,null,"[Arviointi kesken]","[Arviointi kesken]"]
[null,"Tapaturman vaarat (T)","T - Työympäristö","T 6. Hapen puute",null,null,null,null,null,null,null,"",null,null,null,null,null,null,null,"[Arviointi kesken]",null,null,null,null,null,null,null,null,null,null,null,null,null,null,null,null,"[Arviointi kesken]","[Arviointi kesken]"]
[null,"Tapaturman vaarat (T)","T - Työympäristö","T 7. Veden varaan joutuminen",null,null,null,null,null,null,null,"",null,null,null,null,null,null,null,"[Arviointi kesken]",null,null,null,null,null,null,null,null,null,null,null,null,null,null,null,null,"[Arviointi kesken]","[Arviointi kesken]"]
[null,"Tapaturman vaarat (T)","T - Työympäristö","T 8. Tavarankuljetukset ja muu liikenne",null,null,null,null,null,null,null,"",null,null,null,null,null,null,null,"[Arviointi kesken]",null,null,null,null,null,null,null,null,null,null,null,null,null,null,null,null,"[Arviointi kesken]","[Arviointi kesken]"]
[null,"Tapaturman vaarat (T)","T - Työympäristö","T 9. Järjestys ja siisteys",null,null,null,null,null,null,null,"",null,null,null,null,null,null,null,"[Arviointi kesken]",null,null,null,null,null,null,null,null,null,null,null,null,null,null,null,null,"[Arviointi kesken]","[Arviointi kesken]"]
[null,"Tapaturman vaarat (T)","T - Esineet ja aineet","T 10. Esineiden putoaminen",null,null,null,null,null,null,null,"",null,null,null,null,null,null,null,"[Arviointi kesken]",null,null,null,null,null,null,null,null,null,null,null,null,null,null,null,null,"[Arviointi kesken]","[Arviointi kesken]"]
[null,"Tapaturman vaarat (T)","T - Esineet ja aineet","T 11. Esineiden kaatuminen",null,null,null,null,null,null,null,"",null,null,null,null,null,null,null,"[Arviointi kesken]",null,null,null,null,null,null,null,null,null,null,null,null,null,null,null,null,"[Arviointi kesken]","[Arviointi kesken]"]
[null,"Tapaturman vaarat (T)","T - Esineet ja aineet","T 12 Sortuminen",null,null,null,null,null,null,null,"",null,null,null,null,null,null,null,"[Arviointi kesken]",null,null,null,null,null,null,null,null,null,null,null,null,null,null,null,null,"[Arviointi kesken]","[Arviointi kesken]"]
[null,"Tapaturman vaarat (T)","T - Esineet ja aineet","T 13. Esineiden tai aineiden sinkoutuminen",null,null,null,null,null,null,null,"",null,null,null,null,null,null,null,"[Arviointi kesken]",null,null,null,null,null,null,null,null,null,null,null,null,null,null,null,null,"[Arviointi kesken]","[Arviointi kesken]"]
[null,"Tapaturman vaarat (T)","T - Esineet ja aineet","T 14. Liikkuvan esineen aiheuttama isku",null,null,null,null,null,null,null,"",null,null,null,null,null,null,null,"[Arviointi kesken]",null,null,null,null,null,null,null,null,null,null,null,null,null,null,null,null,"[Arviointi kesken]","[Arviointi kesken]"]
[null,"Tapaturman vaarat (T)","T - Esineet ja aineet","T 15. Puristuminen esineiden väliin",null,null,null,null,null,null,null,"",null,null,null,null,null,null,null,"[Arviointi kesken]",null,null,null,null,null,null,null,null,null,null,null,null,null,null,null,null,"[Arviointi kesken]","[Arviointi kesken]"]
[null,"Tapaturman vaarat (T)","T - Esineet ja aineet","T 16. Takertuminen liikkuvaan esineeseen",null,null,null,null,null,null,null,"",null,null,null,null,null,null,null,"[Arviointi kesken]",null,null,null,null,null,null,null,null,null,null,null,null,null,null,null,null,"[Arviointi kesken]","[Arviointi kesken]"]
[null,"Tapaturman vaarat (T)","T - Esineet ja aineet","T 17. Viilto-, leikkautumis- ja pistovaara",null,null,null,null,null,null,null,"",null,null,null,null,null,null,null,"[Arviointi kesken]",null,null,null,null,null,null,null,null,null,null,null,null,null,null,null,null,"[Arviointi kesken]","[Arviointi kesken]"]
[null,"Tapaturman vaarat (T)","T - Esineet ja aineet","T 18. Eläimen tai ihmisen toiminta",null,null,null,null,null,null,null,"",null,null,null,null,null,null,null,"[Arviointi kesken]",null,null,null,null,null,null,null,null,null,null,null,null,null,null,null,null,"[Arviointi kesken]","[Arviointi kesken]"]
[null,"Tapaturman vaarat (T)","T - Muut","T 19.",null,null,null,null,null,null,null,"",null,null,null,null,null,null,null,"[Arviointi kesken]",null,null,null,null,null,null,null,null,null,null,null,null,null,null,null,null,"[Arviointi kesken]","[Arviointi kesken]"]
[null,"Tapaturman vaarat (T)","T - Muut","T 20.",null,null,null,null,null,null,null,"",null,null,null,null,null,null,null,"[Arviointi kesken]",null,null,null,null,null,null,null,null,null,null,null,null,null,null,null,null,"[Arviointi kesken]","[Arviointi kesken]"]
[null,"Tapaturman vaarat (T)","T - Muut","T 21.",null,null,null,null,null,null,null,"",null,null,null,null,null,null,null,"[Arviointi kesken]",null,null,null,null,null,null,null,null,null,null,null,null,null,null,null,null,"[Arviointi kesken]","[Arviointi kesken]"]
[null,"Fyysinen kuormittuminen (E)","E - Työpiste","E 1. Työvälineiden sijoittelu",null,null,null,null,null,null,null,"",null,null,null,null,null,null,null,"[Arviointi kesken]",null,null,null,null,null,null,null,null,null,null,null,null,null,null,null,null,"[Arviointi kesken]","[Arviointi kesken]"]
[null,"Fyysinen kuormittuminen (E)","E - Työpiste","E 2. Työskentelytilan riittävyys",null,null,null,null,null,null,null,"",null,null,null,null,null,null,null,"[Arviointi kesken]",null,null,null,null,null,null,null,null,null,null,null,null,null,null,null,null,"[Arviointi kesken]","[Arviointi kesken]"]
[null,"Fyysinen kuormittuminen (E)","E - Työpiste","E 3. Työskentelytason korkeus",null,null,null,null,null,null,null,"",null,null,null,null,null,null,null,"[Arviointi kesken]",null,null,null,null,null,null,null,null,null,null,null,null,null,null,null,null,"[Arviointi kesken]","[Arviointi kesken]"]
[null,"Fyysinen kuormittuminen (E)","E - Työpiste","E 4. Näytöt ja näyttöpäätteet",null,null,null,null,null,null,null,"",null,null,null,null,null,null,null,"[Arviointi kesken]",null,null,null,null,null,null,null,null,null,null,null,null,null,null,null,null,"[Arviointi kesken]","[Arviointi kesken]"]
[null,"Fyysinen kuormittuminen (E)","E - Työasento","E 5. Selän asento",null,null,null,null,null,null,null,"",null,null,null,null,null,null,null,"[Arviointi kesken]",null,null,null,null,null,null,null,null,null,null,null,null,null,null,null,null,"[Arviointi kesken]","[Arviointi kesken]"]
[null,"Fyysinen kuormittuminen (E)","E - Työasento","E 6. Hartioiden ja käsien asento",null,null,null,null,null,null,null,"",null,null,null,null,null,null,null,"[Arviointi kesken]",null,null,null,null,null,null,null,null,null,null,null,null,null,null,null,null,"[Arviointi kesken]","[Arviointi kesken]"]
[null,"Fyysinen kuormittuminen (E)","E - Työasento","E 7. Ranteen ja sormien asento",null,null,null,null,null,null,null,"",null,null,null,null,null,null,null,"[Arviointi kesken]",null,null,null,null,null,null,null,null,null,null,null,null,null,null,null,null,"[Arviointi kesken]","[Arviointi kesken]"]
[null,"Fyysinen kuormittuminen (E)","E - Työasento","E 8. Pään ja niskan asento",null,null,null,null,null,null,null,"",null,null,null,null,null,null,null,"[Arviointi kesken]",null,null,null,null,null,null,null,null,null,null,null,null,null,null,null,null,"[Arviointi kesken]","[Arviointi kesken]"]
[null,"Fyysinen kuormittuminen (E)","E - Työasento","E 9. Jalkojen asento",null,null,null,null,null,null,null,"",null,null,null,null,null,null,null,"[Arviointi kesken]",null,null,null,null,null,null,null,null,null,null,null,null,null,null,null,null,"[Arviointi kesken]","[Arviointi kesken]"]
[null,"Fyysinen kuormittuminen (E)","E - Fyysinen kuormittuminen","E 10. Jatkuva istuminen tai seisominen",null,null,null,null,null,null,null,"",null,null,null,null,null,null,null,"[Arviointi kesken]",null,null,null,null,null,null,null,null,null,null,null,null,null,null,null,null,"[Arviointi kesken]","[Arviointi kesken]"]
[null,"Fyysinen kuormittuminen (E)","E - Fyysinen kuormittuminen","E 11. Kiipeäminen ja liikkuminen tasolta toiselle",null,null,null,null,null,null,null,"",null,null,null,null,null,null,null,"[Arviointi kesken]",null,null,null,null,null,null,null,null,null,null,null,null,null,null,null,null,"[Arviointi kesken]","[Arviointi kesken]"]
[null,"Fyysinen kuormittuminen (E)","E - Fyysinen kuormittuminen","E 12. Työn tauotus ja työtahti",null,null,null,null,null,null,null,"",null,null,null,null,null,null,null,"[Arviointi kesken]",null,null,null,null,null,null,null,null,null,null,null,null,null,null,null,null,"[Arviointi kesken]","[Arviointi kesken]"]
[null,"Fyysinen kuormittuminen (E)","E - Fyysinen kuormittuminen","E 13. Jatkuvasti samana toistuvat työliikkeet",null,null,null,null,null,null,null,"",null,null,null,null,null,null,null,"[Arviointi kesken]",null,null,null,null,null,null,null,null,null,null,null,null,null,null,null,null,"[Arviointi kesken]","[Arviointi kesken]"]
[null,"Fyysinen kuormittuminen (E)","E - Fyysinen kuormittuminen","E 14. Käsin tehtävät nostot, siirrot tai taakan kannattelu",null,null,null,null,null,null,null,"",null,null,null,null,null,null,null,"[Arviointi kesken]",null,null,null,null,null,null,null,null,null,null,null,null,null,null,null,null,"[Arviointi kesken]","[Arviointi kesken]"]
[null,"Fyysinen kuormittuminen (E)","E - Työvälineet","E 15. Työkalujen, koneiden ja laitteiden käytettävyys",null,null,null,null,null,null,null,"",null,null,null,null,null,null,null,"[Arviointi kesken]",null,null,null,null,null,null,null,null,null,null,null,null,null,null,null,null,"[Arviointi kesken]","[Arviointi kesken]"]
[null,"Fyysinen kuormittuminen (E)","E - Muut","E 16.",null,null,null,null,null,null,null,"",null,null,null,null,null,null,null,"[Arviointi kesken]",null,null,null,null,null,null,null,null,null,null,null,null,null,null,null,null,"[Arviointi kesken]","[Arviointi kesken]"]
[null,"Fyysinen kuormittuminen (E)","E - Muut","E 17.",null,null,null,null,null,null,null,"",null,null,null,null,null,null,null,"[Arviointi kesken]",null,null,null,null,null,null,null,null,null,null,null,null,null,null,null,null,"[Arviointi kesken]","[Arviointi kesken]"]
[null,"Fyysinen kuormittuminen (E)","E - Muut","E 18.",null,null,null,null,null,null,null,"",null,null,null,null,null,null,null,"[Arviointi kesken]",null,null,null,null,null,null,null,null,null,null,null,null,null,null,null,null,"[Arviointi kesken]","[Arviointi kesken]"]
[null,"Kemialliset ja biologiset vaaratekijät (K, B)","K - Tiedot kemiallisten vaarojen tunnistamiseksi","K 1. Kemikaaliluettelo",null,null,null,null,null,null,null,"",null,null,null,null,null,null,null,"[Arviointi kesken]",null,null,null,null,null,null,null,null,null,null,null,null,null,null,null,null,"[Arviointi kesken]","[Arviointi kesken]"]
[null,"Kemialliset ja biologiset vaaratekijät (K, B)","K - Tiedot kemiallisten vaarojen tunnistamiseksi","K 2. Kemikaalien pakkausmerkinnät",null,null,null,null,null,null,null,"",null,null,null,null,null,null,null,"[Arviointi kesken]",null,null,null,null,null,null,null,null,null,null,null,null,null,null,null,null,"[Arviointi kesken]","[Arviointi kesken]"]
[null,"Kemialliset ja biologiset vaaratekijät (K, B)","K - Tiedot kemiallisten vaarojen tunnistamiseksi","K 3. Käyttöturvallisuustiedotteet",null,null,null,null,null,null,null,"",null,null,null,null,null,null,null,"[Arviointi kesken]",null,null,null,null,null,null,null,null,null,null,null,null,null,null,null,null,"[Arviointi kesken]","[Arviointi kesken]"]
[null,"Kemialliset ja biologiset vaaratekijät (K, B)","K - Kemikaalien käyttö","K 4. Kemikaalien käyttötavat",null,null,null,null,null,null,null,"",null,null,null,null,null,null,null,"[Arviointi kesken]",null,null,null,null,null,null,null,null,null,null,null,null,null,null,null,null,"[Arviointi kesken]","[Arviointi kesken]"]
[null,"Kemialliset ja biologiset vaaratekijät (K, B)","K - Kemikaalien käyttö","K 5. Kemikaalien varastointi",null,null,null,null,null,null,null,"",null,null,null,null,null,null,null,"[Arviointi kesken]",null,null,null,null,null,null,null,null,null,null,null,null,null,null,null,null,"[Arviointi kesken]","[Arviointi kesken]"]
[null,"Kemialliset ja biologiset vaaratekijät (K, B)","K - Kemikaalien käyttö","K 6. Kemikaalien käytöstä poisto",null,null,null,null,null,null,null,"",null,null,null,null,null,null,null,"[Arviointi kesken]",null,null,null,null,null,null,null,null,null,null,null,null,null,null,null,null,"[Arviointi kesken]","[Arviointi kesken]"]
[null,"Kemialliset ja biologiset vaaratekijät (K, B)","K - Työssä esiintyvät ja syntyvät altisteet","K 7. Vaaralliset tai haitalliset kemikaalit",null,null,null,null,null,null,null,"",null,null,null,null,null,null,null,"[Arviointi kesken]",null,null,null,null,null,null,null,null,null,null,null,null,null,null,null,null,"[Arviointi kesken]","[Arviointi kesken]"]
[null,"Kemialliset ja biologiset vaaratekijät (K, B)","K - Työssä esiintyvät ja syntyvät altisteet","K 8. Syöpää aiheuttavat, perimää vaurioittavat ja lisääntymisterveydelle vaaralliset kemikaalit",null,null,null,null,null,null,null,"",null,null,null,null,null,null,null,"[Arviointi kesken]",null,null,null,null,null,null,null,null,null,null,null,null,null,null,null,null,"[Arviointi kesken]","[Arviointi kesken]"]
[null,"Kemialliset ja biologiset vaaratekijät (K, B)","K - Työssä esiintyvät ja syntyvät altisteet","K 9. Allergiaa aiheuttavat kemikaalit",null,null,null,null,null,null,null,"",null,null,null,null,null,null,null,"[Arviointi kesken]",null,null,null,null,null,null,null,null,null,null,null,null,null,null,null,null,"[Arviointi kesken]","[Arviointi kesken]"]
[null,"Kemialliset ja biologiset vaaratekijät (K, B)","K - Työssä esiintyvät ja syntyvät altisteet","K 10. Palo- ja räjähdysvaaralliset aineet",null,null,null,null,null,null,null,"",null,null,null,null,null,null,null,"[Arviointi kesken]",null,null,null,null,null,null,null,null,null,null,null,null,null,null,null,null,"[Arviointi kesken]","[Arviointi kesken]"]
[null,"Kemialliset ja biologiset vaaratekijät (K, B)","K - Työssä esiintyvät ja syntyvät altisteet","K 11. Pölyt ja kuidut",null,null,null,null,null,null,null,"",null,null,null,null,null,null,null,"[Arviointi kesken]",null,null,null,null,null,null,null,null,null,null,null,null,null,null,null,null,"[Arviointi kesken]","[Arviointi kesken]"]
[null,"Kemialliset ja biologiset vaaratekijät (K, B)","K - Työssä esiintyvät ja syntyvät altisteet","K 12. Kaasut",null,null,null,null,null,null,null,"",null,null,null,null,null,null,null,"[Arviointi kesken]",null,null,null,null,null,null,null,null,null,null,null,null,null,null,null,null,"[Arviointi kesken]","[Arviointi kesken]"]
[null,"Kemialliset ja biologiset vaaratekijät (K, B)","K - Työssä esiintyvät ja syntyvät altisteet","K 13. Höyryt, huurut ja savut",null,null,null,null,null,null,null,"",null,null,null,null,null,null,null,"[Arviointi kesken]",null,null,null,null,null,null,null,null,null,null,null,null,null,null,null,null,"[Arviointi kesken]","[Arviointi kesken]"]
[null,"Kemialliset ja biologiset vaaratekijät (K, B)","K - Työssä esiintyvät ja syntyvät altisteet","K 15. Altisteiden yhteisvaikutukset",null,null,null,null,null,null,null,"",null,null,null,null,null,null,null,"[Arviointi kesken]",null,null,null,null,null,null,null,null,null,null,null,null,null,null,null,null,"[Arviointi kesken]","[Arviointi kesken]"]
[null,"Kemialliset ja biologiset vaaratekijät (K, B)","K - Muut","K 16.",null,null,null,null,null,null,null,"",null,null,null,null,null,null,null,"[Arviointi kesken]",null,null,null,null,null,null,null,null,null,null,null,null,null,null,null,null,"[Arviointi kesken]","[Arviointi kesken]"]
[null,"Kemialliset ja biologiset vaaratekijät (K, B)","K - Muut","K 17.",null,null,null,null,null,null,null,"",null,null,null,null,null,null,null,"[Arviointi kesken]",null,null,null,null,null,null,null,null,null,null,null,null,null,null,null,null,"[Arviointi kesken]","[Arviointi kesken]"]
[null,"Kemialliset ja biologiset vaaratekijät (K, B)","K - Muut","K 18.",null,null,null,null,null,null,null,"",null,null,null,null,null,null,null,"[Arviointi kesken]",null,null,null,null,null,null,null,null,null,null,null,null,null,null,null,null,"[Arviointi kesken]","[Arviointi kesken]"]
[null,"Kemialliset ja biologiset vaaratekijät (K, B)","B - Biologiset vaaratekijät","B 1. Bakteerit ja virukset",null,null,null,null,null,null,null,"",null,null,null,null,null,null,null,"[Arviointi kesken]",null,null,null,null,null,null,null,null,null,null,null,null,null,null,null,null,"[Arviointi kesken]","[Arviointi kesken]"]
[null,"Kemialliset ja biologiset vaaratekijät (K, B)","B - Biologiset vaaratekijät","B 2. Hiiva- ja homesienet",null,null,null,null,null,null,null,"",null,null,null,null,null,null,null,"[Arviointi kesken]",null,null,null,null,null,null,null,null,null,null,null,null,null,null,null,null,"[Arviointi kesken]","[Arviointi kesken]"]
[null,"Kemialliset ja biologiset vaaratekijät (K, B)","B - Biologiset vaaratekijät","B 3. Alkueläimet. loiset, hyönteiset",null,null,null,null,null,null,null,"",null,null,null,null,null,null,null,"[Arviointi kesken]",null,null,null,null,null,null,null,null,null,null,null,null,null,null,null,null,"[Arviointi kesken]","[Arviointi kesken]"]
[null,"Kemialliset ja biologiset vaaratekijät (K, B)","B - Muut","B 4.",null,null,null,null,null,null,null,"",null,null,null,null,null,null,null,"[Arviointi kesken]",null,null,null,null,null,null,null,null,null,null,null,null,null,null,null,null,"[Arviointi kesken]","[Arviointi kesken]"]
[null,"Kemialliset ja biologiset vaaratekijät (K, B)","B - Muut","B 5.",null,null,null,null,null,null,null,"",null,null,null,null,null,null,null,"[Arviointi kesken]",null,null,null,null,null,null,null,null,null,null,null,null,null,null,null,null,"[Arviointi kesken]","[Arviointi kesken]"]
[null,"Kemialliset ja biologiset vaaratekijät (K, B)","B - Muut","B 6.",null,null,null,null,null,null,null,"",null,null,null,null,null,null,null,"[Arviointi kesken]",null,null,null,null,null,null,null,null,null,null,null,null,null,null,null,null,"[Arviointi kesken]","[Arviointi kesken]"]
[null,"Psykososiaaliset kuormitustekijät (P)","P - Työn sisältö"," P 1. Yksipuolinen työ",null,null,null,null,null,null,null,"",null,null,null,null,null,null,null,"[Arviointi kesken]",null,null,null,null,null,null,null,null,null,null,null,null,null,null,null,null,"[Arviointi kesken]","[Arviointi kesken]"]
[null,"Psykososiaaliset kuormitustekijät (P)","P - Työn sisältö","P 2. Työn laadulliset vaatimukset",null,null,null,null,null,null,null,"",null,null,null,null,null,null,null,"[Arviointi kesken]",null,null,null,null,null,null,null,null,null,null,null,null,null,null,null,null,"[Arviointi kesken]","[Arviointi kesken]"]
[null,"Psykososiaaliset kuormitustekijät (P)","P - Työn sisältö","P 3. Työtehtäviin sisältyvä vastuu",null,null,null,null,null,null,null,{"$f":"IF(OR(E72=\"\",E72=\"Ei\",E72=\"Ei koske arvioitavaa kohdetta\"),\"\",IF(I72=\"Kyllä\",\"Siedettävä\",IF(OR(J72=\"\",K72=\"\"),\"\",IF(AND(J72=\"Ei\",K72=\"Ei\"),\"Seurattava\",IF(AND(J72=\"Kyllä\",K72=\"Kyllä\"),\"Kriittinen\",\"Arvioitava\")))))","v":""},null,null,null,null,null,null,null,{"$f":"IF(OR(E72=\"\",AND(E72=\"Kyllä\",L72=\"\")),\"[Arviointi kesken]\",IF(L72<>\"\",IF(L72=\"Seurattava\",\"Myös helpot toimenpiteet mahdollisia\",IF(L72=\"Kriittinen\",\"Välitön (heti)\",IF(L72=\"Siedettävä\",\"Arvioitava olosuhteiden muuttuessa\",IF(AND(M72=\"Kyllä\",N72=\"Kyllä\"),\"Pikainen\",IF(AND(M72=\"Ei\",N72=\"Ei\"),\"Myös helpot toimenpiteet mahdollisia\",IF(S72=\"Kyllä\",\"Kohtuullisen ajan sisällä\",IF(S72=\"Ei\",\"Myös helpot toimenpiteet mahdollisia\",\"[Arviointi kesken]\"))))))),\"\"))","v":"[Arviointi kesken]"},null,null,null,null,null,null,null,null,null,null,null,null,null,null,null,null,"[Arviointi kesken]","[Arviointi kesken]"]
[null,"Psykososiaaliset kuormitustekijät (P)","P - Työn sisältö","P 4. Valppaana olo",null,null,null,null,null,null,null,"",null,null,null,null,null,null,null,"[Arviointi kesken]",null,null,null,null,null,null,null,null,null,null,null,null,null,null,null,null,"[Arviointi kesken]",{"$f":"IF(T73=\"[Arviointi kesken]\",\"[Arviointi kesken]\",IF(AND(AND(AND(AND(AND(AG73<>\"\",AF73=\"OK\"),AE73=\"Ei\"),AH73=\"Ei\"),AI73=\"Ei\"),AJ73=\"Kyllä\"),\"Lisätoimenpiteet suositeltavia, kunnes riski on siedettävä. Arvioi riski uudelleen, koska olosuhteet ovat muuttuneet. Palaa haitta- ja vaaratekijöiden tunnistamiseen.\",IF(AND(AND(AND(AND(AND(AG73<>\"\",AF73=\"OK\"),AE73=\"Ei\"),AH73=\"Ei\"),AI73=\"Ei\"),AJ73=\"Ei\"),\"Lisätoimenpiteet suositeltavia, kunnes riski on siedettävä. Palaa toimenpiteiden suunnitteluun ja valintaan.\",IF(AND(AND(AND(AND(AH73=\"Kyllä\",AI73=\"Kyllä\"),AE73=\"Ei\"),AF73=\"OK\"),AG73<>\"\"),\"Lisätoimenpiteitä toteutettava välittömästi. Palaa toimenpiteiden suunnitteluun ja valintaan.\",IF(AND(AND(AND(AE73=\"Ei\",OR(AH73=\"Kyllä\",AI73=\"Kyllä\"),AH73<>\"\",AI73<>\"\"),AJ73=\"Kyllä\")),\"Lisätoimenpiteitä edelleen suunniteltava, kunnes riski on siedettävä. Arvioi riski uudelleen, koska olosuhteet ovat muuttuneet. Palaa haitta- ja vaaratekijöiden tunnistamiseen.\",IF(AND(AND(AND(AE73=\"Ei\",OR(AH73=\"Kyllä\",AI73=\"Kyllä\"),AH73<>\"\",AI73<>\"\"),AJ73=\"Ei\")),\"Lisätoimenpiteitä edelleen suunniteltava, kunnes riski on siedettävä. Palaa toimenpiteiden suunnitteluun ja valintaan.\",IF(OR(AND(AND(AND(AE73=\"Kyllä\",AF73=\"OK\",AG73<>\"\",AJ73=\"Ei\"))),AND(AND(AND(AE73=\"Kyllä\",AF73=\"OK\",AG73<>\"\",AJ73=\"Ei\")))),\"Kunnossa, päivitä olosuhteiden muuttuessa.\",IF(AND(AND(AND(AE73=\"Kyllä\",AF73=\"OK\",AG73<>\"\",AJ73=\"Kyllä\"))),\"Päivitettävä, koska olosuhteet ovat muuttuneet. Palaa haitta- ja vaaratekijöiden tunnistamiseen.\",IF(AND(E73=\"Kyllä, mutta on hallinnassa\",AJ73=\"Ei\"),\"Kunnossa, päivitä olosuhteiden muuttuessa.\",IF(AND(E73=\"Ei koske arvioitavaa kohdetta\",AJ73=\"Ei\"),\"Kunnossa, päivitä olosuhteiden muuttuessa.\",IF(AND(E73=\"Ei koske arvioitavaa kohdetta\",AJ73=\"Kyllä\"),\"Päivitettävä, palaa haitta- ja vaaratekijöiden tunnistamiseen.\",IF(AND(AND(E73=\"Kyllä\",L73=\"Siedettävä\",AJ73=\"Ei\")),\"Kunnossa, päivitä olosuhteiden muuttuessa.\",IF(AND(AND(OR(E73=\"Kyllä\",E73=\"Kyllä, mutta on hallinnassa\"),L73=\"Siedettävä\",AJ73=\"Kyllä\")),\"Päivitettävä, palaa haitta- ja vaaratekijöiden tunnistamiseen.\",\"[Arviointi kesken]\")))))))))))))","v":"[Arviointi kesken]"}]
[null,"Psykososiaaliset kuormitustekijät (P)","P - Työn sisältö","P 5. Tiedon käsittely",null,null,null,null,null,null,null,"",null,null,null,null,null,null,null,"[Arviointi kesken]",null,null,null,null,null,null,null,null,null,null,null,null,null,null,null,null,{"$f":"IF(T74=\"[Arviointi kesken]\",\"[Arviointi kesken]\",IF(AND(AND(AND(AND(AND(AG74<>\"\",AF74=\"OK\"),AE74=\"Ei\"),AH74=\"Ei\"),AI74=\"Ei\"),AJ74=\"Kyllä\"),\"Arvioitava uudelleen\",IF(AND(AND(AND(AND(AND(AG74<>\"\",AF74=\"OK\"),AE74=\"Ei\"),AH74=\"Ei\"),AI74=\"Ei\"),AJ74=\"Ei\"),\"Jäännösriski seurattava\",IF(AND(AND(AND(AND(AH74=\"Kyllä\",AI74=\"Kyllä\"),AE74=\"Ei\"),AF74=\"OK\"),AG74<>\"\"),\"Jäännösriski kriittinen\",IF(AND(AND(AND(AE74=\"Ei\",OR(AH74=\"Kyllä\",AI74=\"Kyllä\"),AH74<>\"\",AI74<>\"\"),AJ74=\"Kyllä\")),\"Arvioitava uudelleen\",IF(AND(AND(AND(AE74=\"Ei\",OR(AH74=\"Kyllä\",AI74=\"Kyllä\"),AH74<>\"\",AI74<>\"\"),AJ74=\"Ei\")),\"Edelleen pienennettävä\",IF(OR(AND(AND(AND(AE74=\"Kyllä\",AF74=\"OK\",AG74<>\"\",AJ74=\"Ei\"))),AND(AND(AND(AE74=\"Kyllä\",AF74=\"OK\",AG74<>\"\",AJ74=\"Ei\")))),\"Jäännösriski siedettävä\",IF(AND(AND(AND(AE74=\"Kyllä\",AF74=\"OK\",AG74<>\"\",AJ74=\"Kyllä\"))),\"Arvioitava uudelleen\",IF(AND(E74=\"Kyllä, mutta on hallinnassa\",AJ74=\"Ei\"),\"Jäännösriski siedettävä\",IF(AND(E74=\"Ei koske arvioitavaa kohdetta\",AJ74=\"Ei\"),\"Ei riskiä kohteessa\",IF(AND(E74=\"Ei koske arvioitavaa kohdetta\",AJ74=\"Kyllä\"),\"Arvioitava uudelleen\",IF(AND(AND(E74=\"Kyllä\",L74=\"Siedettävä\",AJ74=\"Ei\")),\"Jäännösriski siedettävä\",IF(AND(AND(OR(E74=\"Kyllä\",E74=\"Kyllä, mutta on hallinnassa\"),L74=\"Siedettävä\",AJ74=\"Kyllä\")),\"Arvioitava uudelleen\",\"[Arviointi kesken]\")))))))))))))","v":"[Arviointi kesken]"},"[Arviointi kesken]"]
[null,"Psykososiaaliset kuormitustekijät (P)","P - Työn sisältö","P 6. Työn keskeytykset",null,null,null,null,null,null,null,"",null,null,null,null,null,null,null,"[Arviointi kesken]",null,null,null,null,null,null,null,null,null,null,null,null,null,null,null,null,"[Arviointi kesken]","[Arviointi kesken]"]
[null,"Psykososiaaliset kuormitustekijät (P)","P - Työn sisältö","P 7. Työtehtäviin sisältyvät vuorovaikutustilanteet",null,null,null,null,null,null,null,"",null,null,null,null,null,null,null,"[Arviointi kesken]",null,null,null,null,null,null,null,null,null,null,null,null,null,null,null,null,"[Arviointi kesken]","[Arviointi kesken]"]
[null,"Psykososiaaliset kuormitustekijät (P)","P - Työn sisältö","P 8. Väkivallan uhka",null,null,null,null,null,null,null,"",null,null,null,null,null,null,null,"[Arviointi kesken]",null,null,null,null,null,null,null,null,null,null,null,null,null,null,null,null,"[Arviointi kesken]","[Arviointi kesken]"]
[null,"Psykososiaaliset kuormitustekijät (P)","P - Organisointi ja toimintatavat","P 9. Työnjako, tehtävänkuvat tai tavoitteet",null,null,null,null,null,null,null,"",null,null,null,null,null,null,null,"[Arviointi kesken]",null,null,null,null,null,null,null,null,null,null,null,null,null,null,null,null,"[Arviointi kesken]","[Arviointi kesken]"]
[null,"Psykososiaaliset kuormitustekijät (P)","P - Organisointi ja toimintatavat","P 10. Vaikutusmahdollisuudet omaan työhön",null,null,null,null,null,null,null,"",null,null,null,null,null,null,null,"[Arviointi kesken]",null,null,null,null,null,null,null,null,null,null,null,null,null,null,null,null,"[Arviointi kesken]","[Arviointi kesken]"]
[null,"Psykososiaaliset kuormitustekijät (P)","P - Organisointi ja toimintatavat","P 11. Työn määrä ja työtahti",null,null,null,null,null,null,null,"",null,null,null,null,null,null,null,"[Arviointi kesken]",null,null,null,null,null,null,null,null,null,null,null,null,null,null,null,null,"[Arviointi kesken]","[Arviointi kesken]"]
[null,"Psykososiaaliset kuormitustekijät (P)","P - Organisointi ja toimintatavat","P 12. Työajat (mm. ylityöt, vuorotyö, yötyö ja työhön sidonnaisuus)",null,null,null,null,null,null,null,"",null,null,null,null,null,null,null,"[Arviointi kesken]",null,null,null,null,null,null,null,null,null,null,null,null,null,null,null,null,"[Arviointi kesken]","[Arviointi kesken]"]
[null,"Psykososiaaliset kuormitustekijät (P)","P - Organisointi ja toimintatavat","P 13. Liikkuva työ",null,null,null,null,null,null,null,"",null,null,null,null,null,null,null,"[Arviointi kesken]",null,null,null,null,null,null,null,null,null,null,null,null,null,null,null,null,"[Arviointi kesken]","[Arviointi kesken]"]
[null,"Psykososiaaliset kuormitustekijät (P)","P - Organisointi ja toimintatavat","P 14. Työsuhteen epävarmuus",null,null,null,null,null,null,null,"",null,null,null,null,null,null,null,"[Arviointi kesken]",null,null,null,null,null,null,null,null,null,null,null,null,null,null,null,null,"[Arviointi kesken]","[Arviointi kesken]"]
[null,"Psykososiaaliset kuormitustekijät (P)","P - Organisointi ja toimintatavat","P 15. Työskentelyolosuhteet ja työvälineet",null,null,null,null,null,null,null,"",null,null,null,null,null,null,null,"[Arviointi kesken]",null,null,null,null,null,null,null,null,null,null,null,null,null,null,null,null,"[Arviointi kesken]","[Arviointi kesken]"]
[null,"Psykososiaaliset kuormitustekijät (P)","P - Työyhteisön sosiaalinen toimivuus","P 16. Yksintyöskentely",null,null,null,null,null,null,null,"",null,null,null,null,null,null,null,"[Arviointi kesken]",null,null,null,null,null,null,null,null,null,null,null,null,null,null,null,null,"[Arviointi kesken]","[Arviointi kesken]"]
[null,"Psykososiaaliset kuormitustekijät (P)","P - Työyhteisön sosiaalinen toimivuus","P 17. Esimiehen ja työyhteisön tuki",null,null,null,null,null,null,null,"",null,null,null,null,null,null,null,"[Arviointi kesken]",null,null,null,null,null,null,null,null,null,null,null,null,null,null,null,null,"[Arviointi kesken]","[Arviointi kesken]"]
[null,"Psykososiaaliset kuormitustekijät (P)","P - Työyhteisön sosiaalinen toimivuus","P 18. Yhteistyö ja tiedonkulku",null,null,null,null,null,null,null,"",null,null,null,null,null,null,null,"[Arviointi kesken]",null,null,null,null,null,null,null,null,null,null,null,null,null,null,null,null,"[Arviointi kesken]","[Arviointi kesken]"]
[null,"Psykososiaaliset kuormitustekijät (P)","P - Työyhteisön sosiaalinen toimivuus","P 19. Häirintä ja epäasiallinen kohtelu",null,null,null,null,null,null,null,"",null,null,null,null,null,null,null,"[Arviointi kesken]",null,null,null,null,null,null,null,null,null,null,null,null,null,null,null,null,"[Arviointi kesken]","[Arviointi kesken]"]
[null,"Psykososiaaliset kuormitustekijät (P)","P - Työyhteisön sosiaalinen toimivuus","P 20. Syrjivä kohtelu",null,null,null,null,null,null,null,"",null,null,null,null,null,null,null,"[Arviointi kesken]",null,null,null,null,null,null,null,null,null,null,null,null,null,null,null,null,"[Arviointi kesken]","[Arviointi kesken]"]
[null,"Psykososiaaliset kuormitustekijät (P)","P - Muut","P 21.",null,null,null,null,null,null,null,"",null,null,null,null,null,null,null,"[Arviointi kesken]",null,null,null,null,null,null,null,null,null,null,null,null,null,null,null,null,"[Arviointi kesken]","[Arviointi kesken]"]
[null,"Psykososiaaliset kuormitustekijät (P)","P - Muut","P 22.",null,null,null,null,null,null,null,"",null,null,null,null,null,null,null,"[Arviointi kesken]",null,null,null,null,null,null,null,null,null,null,null,null,null,null,null,null,"[Arviointi kesken]","[Arviointi kesken]"]
[null,"Psykososiaaliset kuormitustekijät (P)","P - Muut","P 23.",null,null,null,null,null,null,null,"",null,null,null,null,null,null,null,"[Arviointi kesken]",null,null,null,null,null,null,null,null,null,null,null,null,null,null,null,null,"[Arviointi kesken]","[Arviointi kesken]"]
[null,"Fysikaaliset vaaratekijät (F)","F - Melu","F 1. Jatkuva melu",null,null,null,null,null,null,null,"",null,null,null,null,null,null,null,"[Arviointi kesken]",null,null,null,null,null,null,null,null,null,null,null,null,null,null,null,null,"[Arviointi kesken]","[Arviointi kesken]"]
[null,"Fysikaaliset vaaratekijät (F)","F - Melu","F 2. Iskumelu ",null,null,null,null,null,null,null,"",null,null,null,null,null,null,null,"[Arviointi kesken]",null,null,null,null,null,null,null,null,null,null,null,null,null,null,null,null,"[Arviointi kesken]","[Arviointi kesken]"]
[null,"Fysikaaliset vaaratekijät (F)","F - Lämpötila ja ilmanvaihto","F 3. Työpaikan lämpötila",null,null,null,null,null,null,null,"",null,null,null,null,null,null,null,"[Arviointi kesken]",null,null,null,null,null,null,null,null,null,null,null,null,null,null,null,null,"[Arviointi kesken]","[Arviointi kesken]"]
[null,"Fysikaaliset vaaratekijät (F)","F - Lämpötila ja ilmanvaihto","F 4. Yleisilmanvaihto ja kohdepoistot",null,null,null,null,null,null,null,"",null,null,null,null,null,null,null,"[Arviointi kesken]",null,null,null,null,null,null,null,null,null,null,null,null,null,null,null,null,"[Arviointi kesken]","[Arviointi kesken]"]
[null,"Fysikaaliset vaaratekijät (F)","F - Lämpötila ja ilmanvaihto","F 5. Vetoisuus",null,null,null,null,null,null,null,"",null,null,null,null,null,null,null,"[Arviointi kesken]",null,null,null,null,null,null,null,null,null,null,null,null,null,null,null,null,"[Arviointi kesken]","[Arviointi kesken]"]
[null,"Fysikaaliset vaaratekijät (F)","F - Lämpötila ja ilmanvaihto","F 6. Kylmät tai kuumat esineet ",null,null,null,null,null,null,null,"",null,null,null,null,null,null,null,"[Arviointi kesken]",null,null,null,null,null,null,null,null,null,null,null,null,null,null,null,null,"[Arviointi kesken]","[Arviointi kesken]"]
[null,"Fysikaaliset vaaratekijät (F)","F - Lämpötila ja ilmanvaihto","F 7. Työskentely ulkotiloissa",null,null,null,null,null,null,null,"",null,null,null,null,null,null,null,"[Arviointi kesken]",null,null,null,null,null,null,null,null,null,null,null,null,null,null,null,null,"[Arviointi kesken]","[Arviointi kesken]"]
[null,"Fysikaaliset vaaratekijät (F)","F - Valaistus","F 8. Yleisvalaistus",null,null,null,null,null,null,null,"",null,null,null,null,null,null,null,"[Arviointi kesken]",null,null,null,null,null,null,null,null,null,null,null,null,null,null,null,null,"[Arviointi kesken]","[Arviointi kesken]"]
[null,"Fysikaaliset vaaratekijät (F)","F - Valaistus","F 9. Kohdevalaistus työpisteissä",null,null,null,null,null,null,null,"",null,null,null,null,null,null,null,"[Arviointi kesken]",null,null,null,null,null,null,null,null,null,null,null,null,null,null,null,null,"[Arviointi kesken]","[Arviointi kesken]"]
[null,"Fysikaaliset vaaratekijät (F)","F - Valaistus","F 10. Ulkovalaistus",null,null,null,null,null,null,null,"",null,null,null,null,null,null,null,"[Arviointi kesken]",null,null,null,null,null,null,null,null,null,null,null,null,null,null,null,null,"[Arviointi kesken]","[Arviointi kesken]"]
[null,"Fysikaaliset vaaratekijät (F)","F - Tärinä","F 11. Käsiin kohdistuva tärinä",null,null,null,null,null,null,null,"",null,null,null,null,null,null,null,"[Arviointi kesken]",null,null,null,null,null,null,null,null,null,null,null,null,null,null,null,null,"[Arviointi kesken]","[Arviointi kesken]"]
[null,"Fysikaaliset vaaratekijät (F)","F - Tärinä","F 12. Koko kehoon kohdistuva tärinä",null,null,null,null,null,null,null,"",null,null,null,null,null,null,null,"[Arviointi kesken]",null,null,null,null,null,null,null,null,null,null,null,null,null,null,null,null,"[Arviointi kesken]","[Arviointi kesken]"]
[null,"Fysikaaliset vaaratekijät (F)","F - Säteilyt","F 13. Ionisoiva säteily",null,null,null,null,null,null,null,"",null,null,null,null,null,null,null,"[Arviointi kesken]",null,null,null,null,null,null,null,null,null,null,null,null,null,null,null,null,"[Arviointi kesken]","[Arviointi kesken]"]
[null,"Fysikaaliset vaaratekijät (F)","F - Säteilyt","F 14. Ultraviolettisäteily",null,null,null,null,null,null,null,"",null,null,null,null,null,null,null,"[Arviointi kesken]",null,null,null,null,null,null,null,null,null,null,null,null,null,null,null,null,"[Arviointi kesken]","[Arviointi kesken]"]
[null,"Fysikaaliset vaaratekijät (F)","F - Säteilyt","F 15. Lasersäteily ",null,null,null,null,null,null,null,"",null,null,null,null,null,null,null,"[Arviointi kesken]",null,null,null,null,null,null,null,null,null,null,null,null,null,null,null,null,"[Arviointi kesken]","[Arviointi kesken]"]
[null,"Fysikaaliset vaaratekijät (F)","F - Säteilyt","F 16. Infrapunasäteily",null,null,null,null,null,null,null,"",null,null,null,null,null,null,null,"[Arviointi kesken]",null,null,null,null,null,null,null,null,null,null,null,null,null,null,null,null,"[Arviointi kesken]","[Arviointi kesken]"]
[null,"Fysikaaliset vaaratekijät (F)","F - Säteilyt","F 17. Mikroaallot ",null,null,null,null,null,null,null,"",null,null,null,null,null,null,null,"[Arviointi kesken]",null,null,null,null,null,null,null,null,null,null,null,null,null,null,null,null,"[Arviointi kesken]","[Arviointi kesken]"]
[null,"Fysikaaliset vaaratekijät (F)","F - Säteilyt","F 18. Sähkömagneettiset kentät",null,null,null,null,null,null,null,"",null,null,null,null,null,null,null,"[Arviointi kesken]",null,null,null,null,null,null,null,null,null,null,null,null,null,null,null,null,"[Arviointi kesken]","[Arviointi kesken]"]
[null,"Fysikaaliset vaaratekijät (F)","F - Muut","F 19.",null,null,null,null,null,null,null,"",null,null,null,null,null,null,null,"[Arviointi kesken]",null,null,null,null,null,null,null,null,null,null,null,null,null,null,null,null,"[Arviointi kesken]","[Arviointi kesken]"]
[null,"Fysikaaliset vaaratekijät (F)","F - Muut","F 20.",null,null,null,null,null,null,null,"",null,null,null,null,null,null,null,"[Arviointi kesken]",null,null,null,null,null,null,null,null,null,null,null,null,null,null,null,null,"[Arviointi kesken]","[Arviointi kesken]"]
[null,"Fysikaaliset vaaratekijät (F)","F - Muut","F 21.",null,null,null,null,null,null,null,"",null,null,null,null,null,null,null,"[Arviointi kesken]",null,null,null,null,null,null,null,null,null,null,null,null,null,null,null,null,"[Arviointi kesken]","[Arviointi kesken]"]

{"sheet":"Riskiluokkien kuvaus ja määritt","index":2,"n_rows":55,"n_cols":7,"rows_kept":55,"cut":false,"hidden":false,"merged":[[54,2,55,2],[48,2,50,2],[41,2,43,2],[13,6,14,6],[17,6,18,6],[21,6,23,6]]}
[]
[]
[]
[null,null,null,null,null,"Riskiluokka","Toimenpidetarve"]
[]
[null,null,null,null,null,"Kriittinen","Välitön"]
[]
[]
[]
[null,null,null,null,null,"Huomattava","Pikainen"]
[]
[]
[]
[null,null,null,null,null,"Kohtalainen","Kohtuullisen ajan sisällä"]
[]
[]
[]
[null,null,null,null,null,"Seurattava","Myös helpot mahdollisia"]
[]
[]
[]
[null,null,null,null,null,"Siedettävä","Arvioitava olosuhteiden muuttuessa"]
[]
[]
[]
[]
[]
[null,"Riskiluokka","Toimenpidetarve"]
[]
[null,"Kriittinen","Välitön"]
[]
[]
[]
[]
[]
[null,"Huomattava","Pikainen"]
[]
[]
[]
[]
[]
[null,"Kohtalainen","Kohtuullisen ajan sisällä"]
[]
[]
[]
[]
[]
[]
[null,"Seurattava","Myös helpot mahdollisia"]
[]
[]
[]
[]
[]
[null,"Siedettävä","Arvioitava olosuhteiden muuttuessa"]

{"sheet":"MetaData","index":3,"n_rows":82,"n_cols":8,"rows_kept":82,"cut":false,"hidden":false,"merged":[]}
[]
[null,"Seurausten vakavuus ja todennäköisyys"]
[null,"Kyllä","Ei"]
[null,null,"Kyllä"]
[null,null,"Ei"]
[]
[]
[null,"Nykyisten toimenpiteiden riittävyys"]
[null,"Kyllä","Kyllä, mutta on hallinnassa","Ei koske arvioitavaa kohdetta"]
[null,"Kyllä","Kyllä"]
[null,"Ei"]
[null,null,null," "]
[]
[null,"Riskin merkittävyydestä päättäminen"]
[null,"Kriittinen","Arvioitava","Seurattava","Siedettävä"]
[null,null,"Kyllä"]
[null,null,"Ei"]
[]
[]
[]
[null,"Toimenpide toteutettu"]
[null,"   "]
[null,"OK"]
[]
[]
[]
[null,"Toimenpide estää riskin syntymisen"]
[null," "]
[null,"Kyllä"]
[null,"Ei"]
[]
[]
[]
[null,"Olosuhteiden muutokset"]
[]
[null,"Kyllä"]
[null,"Ei"]
[]
[null,"Toimenpiteiden riittävyys"]
[null,"Kyllä","Ei"]
[]
[null,"Kyllä"]
[null,"Ei"]
[]
[]
[null,"Riskin merkittävyys organisaatiolle"]
[null,"Kyllä","Ei"]
[null,"Kyllä","Kyllä"]
[null,"Ei","Ei"]
[]
[]
[]
[null,"Toimenpide estää riskin syntymisen"]
[null,"Arvioitava olosuhteiden muuttuessa","[Arviointi kesken]",null,"Välitön (heti)","Pikainen","Kohtuullisen ajan sisällä","Myös helpot toimenpiteet mahdollisia"]
[null,null,null,null," "," "," "," "]
[null,null,null,null,"Kyllä","Kyllä","Kyllä","Kyllä"]
[null,null,null,null,"Ei","Ei","Ei","Ei"]
[]
[]
[]
[null,"Jäännösriskin arviointi"]
[null,"Kyllä","Ei"]
[null,null,"Kyllä"]
[null,null,"Ei"]
[]
[]
[]
[null,"Toimenpiteiden suunnittelu"]
[null,"Arvioitava olosuhteiden muuttuessa","[Arviointi kesken]",null,"Välitön (heti)","Pikainen","Kohtuullisen ajan sisällä","Myös helpot toimenpiteet mahdollisia"]
[null,null,null,null,"Valitse","Valitse","Valitse","Valitse"]
[null,null,null,null,"Ei sovellu","Ei sovellu","Ei sovellu","Ei sovellu"]
[]
[null,"Toimenpiteiden suunnittelu"]
[null,"Valitse","Ei sovellu"]
[null,"Valitse","Valitse"]
[null,"Ei sovellu","Ei sovellu"]
[]
[]
[null,"Toimenpiteet estävät riskin syntymisen"]
[null,"Valitse","Ei sovellu"]
[null,"Kyllä","Kyllä"]
[null,"Ei","Ei"]